[Event "2nd FIDE WCC Rapid G10"]
[Site "Minsk"]
[Date "2018.06.23"]
[Round "8"]
[White "Zavivaeva, Evelina"]
[Black "Mutina, Sofia"]
[Result "0-1"]
[ECO "C15"]
[WhiteElo "1390"]
[BlackElo "1341"]
[Annotator "NA RC"]
[PlyCount "96"]
[EventDate "2018.06.22"]
[EventType "rapid"]
[EventCountry "BLR"]
[SourceTitle "playchess.com"]
[Source "ChessBase"]
[SourceQuality "1"]
[TimeControl "600+5"]

1. e4 {[%emt 0:00:00]} e6 {[%emt 0:00:01]} 2. d4 {[%emt 0:00:01]} d5 {[%emt 0:00:01]} 3. Nc3 {[%emt 0:00:02]} Bb4 {[%emt 0:00:02]} 4. exd5 {[%emt 0:00:02]} exd5 {[%emt 0:00:02]} 5. Bd3 {[%emt 0:00:01]} Ne7 {[%emt 0:00:08]} 6. Nf3 {[%emt 0:00:11]} O-O {[%emt 0:00:21]} 7. h3 {[%emt 0:00:10]} c6 {[%emt 0:00:14]} 8. Bg5 {[%emt 0:00:14]} f6 {[%emt 0:00:01]} 9. Bf4 {[%emt 0:00:25]} Bd6 {[%emt 0:00:09]} 10. Bxd6 {[%emt 0:00:06]} Qxd6 {[%emt 0:00:01]} 11. O-O {[%emt 0:00:12]} Bf5 {[%emt 0:00:44]} 12. Re1 {[%emt 0:00:20]} Bxd3 {[%emt 0:00:21]} 13. Qxd3 {[%emt 0:00:05]} Ng6 {[%emt 0:00:01]} 14. g3 {[%emt 0:01:24]} Nd7 {[%emt 0:00:14]} 15. Re2 {[%emt 0:01:01]} Rfe8 {[%emt 0:00:18]} 16. Rae1 {[%emt 0:00:08]} Rxe2 {[%emt 0:00:03]} 17. Rxe2 {[%emt 0:00:02]} Ndf8 {[%emt 0:00:09]} 18. Qe3 {[%emt 0:00:58]} Qb4 {[%emt 0:00:47]} 19. b3 {[%emt 0:00:17]} Qd6 {[%emt 0:00:07]} 20. Na4 {[%emt 0:01:25]} b6 {[%emt 0:00:08]} 21. c4 Rb8 {[%emt 0:00:49]} 22. Nc3 {[%emt 0:02:27]} Rb7 {[%emt 0:01:27]} 23. cxd5 {[%emt 0:00:47]} cxd5 {[%emt 0:00:05]} 24. Kg2 {[%emt 0:00:41]} a6 {[%emt 0:00:05]} 25. Re1 {[%emt 0:00:29]} Ne7 {[%emt 0:00:27]} 26. Re2 {[%emt 0:00:29]} b5 {[%emt 0:00:07]} 27. Ne1 {[%emt 0:00:09]} Kf7 {[%emt 0:00:36]} 28. Nc2 {[%emt 0:00:04]} Nfg6 {[%emt 0:00:13]} 29. Ne1 {[%emt 0:00:06]} Qb6 {[%emt 0:00:19]} 30. Nd3 {[%emt 0:00:03]} Rb8 {[%emt 0:00:12]} 31. Nc5 {[%emt 0:00:04]} Rd8 {[%emt 0:00:32]} 32. h4 {[%emt 0:00:04]} Nf5 {[%emt 0:00:15]} 33. Qd3 {[%emt 0:00:08]} Nge7 {[%emt 0:00:06]} 34. Ne6 {[%emt 0:00:05]} Rd6 {[%emt 0:00:06]} 35. Nc5 {[%emt 0:00:03]} g6 {[%emt 0:00:28]} 36. Kh3 {[%emt 0:00:03]} Nc6 {[%emt 0:00:19]} 37. a3 {[%emt 0:00:11]} Ncxd4 {[%emt 0:00:07]} 38. Rd2 {[%emt 0:00:05]} Qxc5 {[%emt 0:00:03]} 39. b4 {[%emt 0:00:02]} Qc4 {[%emt 0:00:01]} 40. Qb1 {[%emt 0:00:06]} Qxc3 {[%emt 0:00:06]} 41. Qd1 {[%emt 0:00:04]} Qf3 {[%emt 0:00:07]} 42. Qg1 {[%emt 0:00:06]} g5 {[%emt 0:00:06]} 43. Rd1 {[%emt 0:00:05]} Ne2 {[%emt 0:00:20]} 44. Qf1 {[%emt 0:00:05]} d4 {[%emt 0:00:08]} 45. Kh2 {[%emt 0:00:04]} d3 {[%emt 0:00:04]} 46. Rd2 {[%emt 0:00:05]} Ne3 {[%emt 0:00:03]} 47. Qh1 {[%emt 0:00:08]} Ng4+ {[%emt 0:00:06]} 48. Kh3 {[%emt 0:00:05]} Nf4# {[%emt 0:00:04]} 0-1

[Event "2nd FIDE WCC Rapid G10"]
[Site "Minsk"]
[Date "2018.06.23"]
[Round "8"]
[White "Khamdamova, Afruza"]
[Black "Zhapova, Yana"]
[Result "1/2-1/2"]
[ECO "B15"]
[WhiteElo "1383"]
[BlackElo "1597"]
[Annotator "NA RC"]
[PlyCount "141"]
[EventDate "2018.06.22"]
[EventType "rapid"]
[EventCountry "BLR"]
[SourceTitle "playchess.com"]
[Source "ChessBase"]
[SourceQuality "1"]
[TimeControl "600+5"]

1. e4 {[%emt 0:00:00]} c6 {[%emt 0:00:01]} 2. d4 {[%emt 0:00:00]} d5 {[%emt 0:00:00]} 3. Nc3 {[%emt 0:00:00]} dxe4 {[%emt 0:00:02]} 4. Nxe4 {[%emt 0:00:00]} Nf6 {[%emt 0:00:01]} 5. Ng3 {[%emt 0:00:02]} c5 {[%emt 0:00:02]} 6. c3 {[%emt 0:00:07]} Nc6 {[%emt 0:00:10]} 7. Nf3 {[%emt 0:00:02]} Bg4 {[%emt 0:00:56]} 8. Be3 {[%emt 0:00:46]} cxd4 {[%emt 0:00:17]} 9. cxd4 {[%emt 0:00:03]} e6 {[%emt 0:00:22]} 10. a3 {[%emt 0:00:54]} Be7 {[%emt 0:00:22]} 11. Be2 {[%emt 0:00:05]} Bxf3 {[%emt 0:00:23]} 12. Bxf3 {[%emt 0:00:06]} Nd5 {[%emt 0:00:04]} 13. O-O {[%emt 0:00:07]} O-O {[%emt 0:00:14]} 14. Rc1 {[%emt 0:00:22]} Rc8 {[%emt 0:00:09]} 15. Qb3 {[%emt 0:01:47]} Qd7 {[%emt 0:01:38]} 16. Rfd1 {[%emt 0:00:15]} Rfd8 {[%emt 0:01:12]} 17. Ne4 {[%emt 0:00:39]} b6 {[%emt 0:00:35]} 18. Qa4 {[%emt 0:00:27]} Ne5 {[%emt 0:00:52]} 19. Qxd7 {[%emt 0:00:14]} Nxd7 {[%emt 0:00:01]} 20. Bd2 {[%emt 0:00:28]} N7f6 {[%emt 0:00:21]} 21. Nc3 {[%emt 0:00:53]} Nxc3 {[%emt 0:00:11]} 22. Bxc3 {[%emt 0:00:01]} Nd5 {[%emt 0:00:01]} 23. Bd2 {[%emt 0:00:05]} Bf6 {[%emt 0:00:08]} 24. Bc3 {[%emt 0:00:59]} Nxc3 {[%emt 0:00:35]} 25. bxc3 {[%emt 0:00:02]} Be7 {[%emt 0:00:05]} 26. a4 {[%emt 0:00:14]} Rc4 {[%emt 0:00:02]} 27. a5 {[%emt 0:00:30]} Rdc8 {[%emt 0:00:21]} 28. axb6 {[%emt 0:00:09]} axb6 {[%emt 0:00:00]} 29. d5 {[%emt 0:00:51]} exd5 {[%emt 0:00:59]} 30. Rxd5 {[%emt 0:00:27]} Rxc3 {[%emt 0:00:10]} 31. Re1 {[%emt 0:00:02]} Bf8 {[%emt 0:00:20]} 32. Rb5 {[%emt 0:00:17]} Rc1 {[%emt 0:00:06]} 33. Kf1 {[%emt 0:00:04]} Rxe1+ {[%emt 0:00:09]} 34. Kxe1 {[%emt 0:00:01]} Bc5 {[%emt 0:00:01]} 35. Rb3 {[%emt 0:00:11]} Re8+ {[%emt 0:00:07]} 36. Be2 {[%emt 0:00:14]} Ra8 {[%emt 0:00:33]} 37. Rb1 {[%emt 0:00:02]} Rd8 {[%emt 0:00:07]} 38. f3 {[%emt 0:00:10]} Bg1 {[%emt 0:00:28]} 39. h3 {[%emt 0:00:11]} Bc5 {[%emt 0:00:07]} 40. Bb5 {[%emt 0:00:05]} Rd6 {[%emt 0:00:18]} 41. Ra1 {[%emt 0:00:13]} Rd8 {[%emt 0:00:08]} 42. Ra7 {[%emt 0:00:11]} Rc8 {[%emt 0:00:40]} 43. Ke2 {[%emt 0:00:06]} f6 {[%emt 0:00:03]} 44. Bc4+ {[%emt 0:00:04]} Kh8 {[%emt 0:00:02]} 45. Kd3 {[%emt 0:00:07]} b5 {[%emt 0:00:04]} 46. Be6 {[%emt 0:00:08]} Re8 {[%emt 0:00:06]} 47. Rc7 {[%emt 0:00:11]} Bd6 {[%emt 0:00:11]} 48. Rd7 {[%emt 0:00:11]} Be7 {[%emt 0:00:12]} 49. Kc3 {[%emt 0:00:14]} b4+ {[%emt 0:00:02]} 50. Kb3 {[%emt 0:00:02]} Bf8 51. Bf7 {[%emt 0:00:26]} Ra8 {[%emt 0:00:09]} 52. Kb2 {[%emt 0:00:20]} Rb8 {[%emt 0:00:02]} 53. Kb3 {[%emt 0:00:01]} h6 {[%emt 0:00:04]} 54. Kb2 {[%emt 0:00:02]} Bc5 {[%emt 0:00:04]} 55. Bb3 {[%emt 0:00:02]} Kh7 {[%emt 0:00:04]} 56. Rc7 {[%emt 0:00:02]} Bd4+ {[%emt 0:00:02]} 57. Kc2 {[%emt 0:00:01]} Be5 {[%emt 0:00:03]} 58. Rc6 {[%emt 0:00:04]} Rd8 {[%emt 0:00:08]} 59. Bc4 {[%emt 0:00:13]} Bc3 {[%emt 0:00:04]} 60. Bd3+ {[%emt 0:00:03]} Kh8 {[%emt 0:00:01]} 61. Rc7 {[%emt 0:00:11]} Be5 {[%emt 0:00:02]} 62. Rb7 {[%emt 0:00:08]} Rc8+ {[%emt 0:00:05]} 63. Kd2 {[%emt 0:00:06]} Bc3+ {[%emt 0:00:03]} 64. Kc2 {[%emt 0:00:01]} Be1+ {[%emt 0:00:08]} 65. Kb1 {[%emt 0:00:04]} Bd2 {[%emt 0:00:03]} 66. Bf5 {[%emt 0:00:02]} Re8 {[%emt 0:00:07]} 67. Kc2 {[%emt 0:00:03]} Bc3 {[%emt 0:00:01]} 68. Kb3 {[%emt 0:00:02]} Rd8 {[%emt 0:00:04]} 69. Bc2 {[%emt 0:00:08]} Kg8 {[%emt 0:00:10]} 70. Bg6 {[%emt 0:00:03]} Rf8 {[%emt 0:00:06]} 71. Ra7 {[%emt 0:00:03]} 1/2-1/2

[Event "2nd FIDE WCC Rapid G10"]
[Site "Minsk"]
[Date "2018.06.23"]
[Round "8"]
[White "Novikova, Daria"]
[Black "Kirdyashkina, Ekaterina"]
[Result "0-1"]
[ECO "D02"]
[WhiteElo "1341"]
[BlackElo "1463"]
[Annotator "NA RC"]
[PlyCount "64"]
[EventDate "2018.06.22"]
[EventType "rapid"]
[EventCountry "BLR"]
[SourceTitle "playchess.com"]
[Source "ChessBase"]
[SourceQuality "1"]
[TimeControl "600+5"]

1. d4 {[%emt 0:00:00]} d5 {[%emt 0:00:00]} 2. Nf3 {[%emt 0:00:00]} Bf5 {[%emt 0:00:04]} 3. e3 {[%emt 0:00:05]} e6 {[%emt 0:00:01]} 4. Bd3 {[%emt 0:00:03]} Bxd3 {[%emt 0:00:32]} 5. Qxd3 {[%emt 0:00:03]} a6 {[%emt 0:00:09]} 6. Nbd2 {[%emt 0:00:07]} Nf6 {[%emt 0:00:05]} 7. b3 {[%emt 0:00:03]} Nc6 {[%emt 0:00:03]} 8. Bb2 {[%emt 0:00:03]} Nb4 {[%emt 0:00:11]} 9. Qc3 {[%emt 0:00:04]} Ne4 {[%emt 0:00:05]} 10. Nxe4 {[%emt 0:00:11]} dxe4 {[%emt 0:00:03]} 11. Nd2 {[%emt 0:00:05]} Nd5 {[%emt 0:00:35]} 12. Qc4 {[%emt 0:00:22]} f5 {[%emt 0:00:26]} 13. Qe2 {[%emt 0:00:08]} Qg5 {[%emt 0:01:12]} 14. O-O {[%emt 0:00:50]} Be7 {[%emt 0:01:03]} 15. a3 {[%emt 0:00:03]} O-O {[%emt 0:00:56]} 16. Kh1 {[%emt 0:00:45]} b6 {[%emt 0:01:18]} 17. c4 {[%emt 0:01:06]} Nf6 {[%emt 0:00:07]} 18. f3 {[%emt 0:01:29]} Bd6 {[%emt 0:03:09]} 19. fxe4 {[%emt 0:02:19]} fxe4 {[%emt 0:00:21]} 20. Rf2 {[%emt 0:00:40]} Qh4 {[%emt 0:00:25]} 21. Nf1 {[%emt 0:00:04]} Ng4 {[%emt 0:00:26]} 22. Rxf8+ {[%emt 0:00:16]} Rxf8 {[%emt 0:00:01]} 23. g3 {[%emt 0:00:05]} Qh3 {[%emt 0:00:05]} 24. Qg2 {[%emt 0:00:23]} Qh6 {[%emt 0:00:07]} 25. b4 {[%emt 0:00:27]} Rf2 {[%emt 0:00:03]} 26. Qg1 {[%emt 0:00:22]} Rxb2 {[%emt 0:00:08]} 27. c5 {[%emt 0:00:05]} bxc5 {[%emt 0:00:03]} 28. bxc5 {[%emt 0:00:03]} Nf2+ {[%emt 0:00:07]} 29. Qxf2 {[%emt 0:00:16]} Rxf2 {[%emt 0:00:01]} 30. cxd6 {[%emt 0:00:02]} cxd6 {[%emt 0:00:02]} 31. Rb1 {[%emt 0:00:05]} Qf6 {[%emt 0:00:10]} 32. Kg1 {[%emt 0:00:06]} Qf3 {[%emt 0:00:03]} 0-1

[Event "2nd FIDE WCC Rapid G10"]
[Site "Minsk"]
[Date "2018.06.23"]
[Round "8"]
[White "Vu, My Linh"]
[Black "Bykovskikh, Ekaterina"]
[Result "1-0"]
[ECO "D35"]
[WhiteElo "1319"]
[BlackElo "1360"]
[Annotator "NA RC"]
[PlyCount "153"]
[EventDate "2018.06.22"]
[EventType "rapid"]
[EventCountry "BLR"]
[SourceTitle "playchess.com"]
[Source "ChessBase"]
[SourceQuality "1"]
[TimeControl "600+5"]

1. d4 {[%emt 0:00:00]} d5 {[%emt 0:00:01]} 2. c4 {[%emt 0:00:00]} e6 {[%emt 0:00:01]} 3. Nc3 {[%emt 0:00:00]} Nf6 {[%emt 0:00:01]} 4. cxd5 {[%emt 0:00:00]} exd5 {[%emt 0:00:02]} 5. Bf4 {[%emt 0:00:01]} c6 {[%emt 0:00:05]} 6. Nf3 {[%emt 0:00:02]} Nbd7 {[%emt 0:00:12]} 7. g3 {[%emt 0:00:02]} Bb4 {[%emt 0:00:03]} 8. a3 {[%emt 0:00:06]} Bxc3+ {[%emt 0:00:08]} 9. bxc3 {[%emt 0:00:01]} Ne4 {[%emt 0:00:09]} 10. Rc1 {[%emt 0:00:07]} O-O {[%emt 0:00:04]} 11. Bg2 {[%emt 0:00:01]} Ndf6 {[%emt 0:00:08]} 12. Nd2 {[%emt 0:00:12]} Bf5 {[%emt 0:00:24]} 13. O-O {[%emt 0:00:03]} Qd7 {[%emt 0:00:25]} 14. f3 {[%emt 0:00:04]} Nxd2 {[%emt 0:00:05]} 15. Qxd2 {[%emt 0:00:02]} Bh3 {[%emt 0:00:12]} 16. e4 {[%emt 0:00:14]} Bxg2 {[%emt 0:00:20]} 17. Qxg2 {[%emt 0:00:03]} dxe4 {[%emt 0:00:05]} 18. fxe4 {[%emt 0:00:01]} Rfe8 {[%emt 0:00:09]} 19. Rce1 {[%emt 0:00:27]} Rac8 {[%emt 0:00:24]} 20. Bg5 {[%emt 0:00:02]} Re6 {[%emt 0:00:56]} 21. Bxf6 {[%emt 0:00:48]} Rxf6 {[%emt 0:00:13]} 22. Rxf6 {[%emt 0:00:02]} gxf6 {[%emt 0:00:01]} 23. Qf3 {[%emt 0:00:01]} Qe6 {[%emt 0:00:13]} 24. e5 {[%emt 0:00:25]} fxe5 {[%emt 0:00:16]} 25. Rxe5 {[%emt 0:00:03]} Qg6 {[%emt 0:00:21]} 26. Qe3 {[%emt 0:00:45]} h6 {[%emt 0:00:49]} 27. Kg2 {[%emt 0:00:39]} Qc2+ {[%emt 0:00:17]} 28. Kh3 {[%emt 0:00:19]} Qg6 {[%emt 0:00:19]} 29. Qe2 {[%emt 0:00:32]} Kh7 {[%emt 0:00:50]} 30. Re7 {[%emt 0:00:36]} Qf5+ {[%emt 0:00:34]} 31. g4 {[%emt 0:00:02]} Qd5 {[%emt 0:00:39]} 32. Qf2 {[%emt 0:00:26]} Kg7 {[%emt 0:00:28]} 33. Rxb7 {[%emt 0:00:18]} c5 {[%emt 0:00:43]} 34. Rxa7 {[%emt 0:00:03]} cxd4 {[%emt 0:00:03]} 35. Qxd4+ {[%emt 0:00:10]} Qxd4 {[%emt 0:00:05]} 36. cxd4 {[%emt 0:00:01]} Rd8 {[%emt 0:00:05]} 37. Ra4 {[%emt 0:00:02]} Rd5 {[%emt 0:00:03]} 38. Kg3 {[%emt 0:00:03]} Kg6 {[%emt 0:00:03]} 39. h4 {[%emt 0:00:01]} Kf6 {[%emt 0:00:32]} 40. Kf4 {[%emt 0:00:02]} Rd6 {[%emt 0:00:18]} 41. Ke4 {[%emt 0:00:12]} Kg6 {[%emt 0:00:52]} 42. Ra5 {[%emt 0:00:07]} Re6+ {[%emt 0:00:23]} 43. Re5 {[%emt 0:00:02]} Ra6 {[%emt 0:00:11]} 44. h5+ {[%emt 0:00:24]} Kg7 {[%emt 0:00:18]} 45. d5 {[%emt 0:01:07]} Rxa3 {[%emt 0:00:12]} 46. Kf4 {[%emt 0:00:17]} Rd3 {[%emt 0:00:27]} 47. g5 {[%emt 0:00:38]} hxg5+ {[%emt 0:00:05]} 48. Rxg5+ {[%emt 0:00:05]} Kh6 {[%emt 0:00:28]} 49. Rf5 {[%emt 0:00:02]} Kg7 {[%emt 0:00:19]} 50. Ke5 {[%emt 0:00:15]} Kg8 {[%emt 0:00:05]} 51. d6 {[%emt 0:00:08]} Kf8 {[%emt 0:00:04]} 52. h6 {[%emt 0:00:16]} Ke8 {[%emt 0:00:06]} 53. Rh5 {[%emt 0:00:05]} f6+ {[%emt 0:00:03]} 54. Ke6 {[%emt 0:00:11]} Re3+ {[%emt 0:00:02]} 55. Kxf6 {[%emt 0:00:02]} Rf3+ {[%emt 0:00:02]} 56. Kg5 {[%emt 0:00:05]} Rg3+ {[%emt 0:00:01]} 57. Kh4 {[%emt 0:00:02]} Rd3 {[%emt 0:00:03]} 58. h7 {[%emt 0:00:03]} Rd4+ {[%emt 0:00:04]} 59. Kg3 {[%emt 0:00:04]} Rd3+ {[%emt 0:00:02]} 60. Kf2 {[%emt 0:00:02]} Rd2+ {[%emt 0:00:02]} 61. Ke3 {[%emt 0:00:01]} Rxd6 {[%emt 0:00:03]} 62. h8=Q+ {[%emt 0:00:03]} Kd7 {[%emt 0:00:03]} 63. Qg7+ {[%emt 0:00:06]} Kc6 {[%emt 0:00:01]} 64. Qc3+ {[%emt 0:00:04]} Kd7 {[%emt 0:00:02]} 65. Rh7+ {[%emt 0:00:04]} Ke6 {[%emt 0:00:03]} 66. Rh6+ {[%emt 0:00:02]} Kd7 {[%emt 0:00:02]} 67. Rxd6+ {[%emt 0:00:01]} Kxd6 {[%emt 0:00:02]} 68. Qa5 {[%emt 0:00:01]} Ke6 {[%emt 0:00:01]} 69. Qc5 {[%emt 0:00:02]} Kf6 {[%emt 0:00:02]} 70. Qd5 {[%emt 0:00:01]} Ke7 {[%emt 0:00:02]} 71. Qc6 {[%emt 0:00:01]} Kf7 {[%emt 0:00:01]} 72. Qd6 {[%emt 0:00:01]} Kg7 {[%emt 0:00:04]} 73. Qe6 {[%emt 0:00:01]} Kh8 {[%emt 0:00:05]} 74. Qe7 {[%emt 0:00:02]} Kg8 {[%emt 0:00:01]} 75. Kf4 {[%emt 0:00:01]} Kh8 {[%emt 0:00:02]} 76. Kg5 {[%emt 0:00:02]} Kg8 {[%emt 0:00:01]} 77. Kg6 {[%emt 0:00:01]} 1-0

[Event "2nd FIDE WCC Rapid G10"]
[Site "Minsk"]
[Date "2018.06.23"]
[Round "8"]
[White "Nguyen, Binh Vy"]
[Black "Vlasova, Olesia"]
[Result "0-1"]
[ECO "B43"]
[WhiteElo "1216"]
[BlackElo "1682"]
[Annotator "NA RC"]
[PlyCount "130"]
[EventDate "2018.06.22"]
[EventType "rapid"]
[EventCountry "BLR"]
[SourceTitle "playchess.com"]
[Source "ChessBase"]
[SourceQuality "1"]
[TimeControl "600+5"]

1. e4 {[%emt 0:00:00]} c5 {[%emt 0:00:00]} 2. Nf3 {[%emt 0:00:00]} e6 {[%emt 0:00:01]} 3. d4 {[%emt 0:00:00]} cxd4 {[%emt 0:00:01]} 4. Nxd4 {[%emt 0:00:01]} a6 {[%emt 0:00:01]} 5. Nc3 {[%emt 0:00:02]} Qc7 {[%emt 0:00:01]} 6. Be2 {[%emt 0:00:02]} b5 {[%emt 0:00:03]} 7. a3 {[%emt 0:00:05]} Bb7 {[%emt 0:00:01]} 8. Bf3 {[%emt 0:00:14]} Nc6 {[%emt 0:00:04]} 9. Be3 {[%emt 0:00:02]} Nf6 {[%emt 0:00:05]} 10. O-O {[%emt 0:00:08]} Be7 {[%emt 0:00:01]} 11. Re1 {[%emt 0:01:01]} O-O {[%emt 0:00:06]} 12. Qd2 {[%emt 0:00:27]} Ne5 {[%emt 0:00:29]} 13. Bf4 {[%emt 0:00:33]} Nxf3+ {[%emt 0:00:19]} 14. Nxf3 {[%emt 0:00:02]} d6 {[%emt 0:01:01]} 15. h3 {[%emt 0:00:32]} Rfd8 {[%emt 0:00:11]} 16. Qe2 {[%emt 0:00:06]} Rac8 {[%emt 0:00:23]} 17. e5 {[%emt 0:00:18]} Nd5 {[%emt 0:01:03]} 18. Nxd5 {[%emt 0:00:25]} Bxd5 {[%emt 0:00:08]} 19. c3 {[%emt 0:00:10]} Bxf3 {[%emt 0:00:53]} 20. Qxf3 {[%emt 0:00:22]} d5 {[%emt 0:00:02]} 21. Qg3 {[%emt 0:00:09]} Qc4 {[%emt 0:00:41]} 22. Bh6 {[%emt 0:00:18]} Bf8 {[%emt 0:00:11]} 23. Rad1 {[%emt 0:00:22]} Kh8 {[%emt 0:02:38]} 24. Be3 {[%emt 0:00:06]} Qb3 {[%emt 0:00:16]} 25. Bc1 {[%emt 0:00:20]} a5 {[%emt 0:00:40]} 26. Rd4 {[%emt 0:00:15]} Rc4 {[%emt 0:00:07]} 27. Rxc4 {[%emt 0:00:26]} dxc4 {[%emt 0:00:04]} 28. Qf3 {[%emt 0:00:16]} Kg8 {[%emt 0:00:21]} 29. Qe2 {[%emt 0:00:14]} b4 {[%emt 0:00:25]} 30. cxb4 {[%emt 0:00:07]} axb4 {[%emt 0:00:06]} 31. axb4 {[%emt 0:00:04]} Bxb4 {[%emt 0:00:03]} 32. Rf1 {[%emt 0:00:03]} Qd3 {[%emt 0:00:59]} 33. Qxd3 {[%emt 0:00:53]} cxd3 {[%emt 0:00:02]} 34. Rd1 {[%emt 0:00:15]} d2 {[%emt 0:00:04]} 35. Bxd2 {[%emt 0:00:02]} Rxd2 {[%emt 0:00:05]} 36. Rxd2 {[%emt 0:00:10]} Bxd2 {[%emt 0:00:01]} 37. g3 {[%emt 0:00:06]} Kf8 {[%emt 0:00:00]} 38. Kf1 {[%emt 0:00:02]} Ke7 {[%emt 0:00:02]} 39. Ke2 {[%emt 0:00:01]} Ba5 {[%emt 0:00:01]} 40. Kd3 {[%emt 0:00:01]} Kd7 {[%emt 0:00:03]} 41. Kc4 {[%emt 0:00:01]} Be1 {[%emt 0:00:02]} 42. g4 {[%emt 0:00:12]} Bxf2 {[%emt 0:00:02]} 43. b4 {[%emt 0:00:02]} Bg3 {[%emt 0:00:04]} 44. Kd4 {[%emt 0:00:02]} Kc6 {[%emt 0:00:01]} 45. Ke4 {[%emt 0:00:14]} Kb5 {[%emt 0:00:03]} 46. Kd4 {[%emt 0:00:01]} Kxb4 {[%emt 0:00:02]} 47. Ke4 {[%emt 0:00:02]} Kc4 {[%emt 0:00:00]} 48. Kf3 {[%emt 0:00:01]} Bxe5 {[%emt 0:00:02]} 49. h4 {[%emt 0:00:01]} Bc7 {[%emt 0:00:02]} 50. Ke4 {[%emt 0:00:01]} Bg3 {[%emt 0:00:08]} 51. h5 {[%emt 0:00:02]} f6 {[%emt 0:00:09]} 52. Kf3 {[%emt 0:00:01]} Bh4 {[%emt 0:00:04]} 53. Ke4 {[%emt 0:00:03]} Bg5 {[%emt 0:00:02]} 54. Kf3 {[%emt 0:00:01]} Kd4 {[%emt 0:00:00]} 55. Kg3 {[%emt 0:00:01]} e5 {[%emt 0:00:01]} 56. Kf3 {[%emt 0:00:01]} e4+ {[%emt 0:00:01]} 57. Ke2 {[%emt 0:00:01]} e3 {[%emt 0:00:02]} 58. Ke1 {[%emt 0:00:00]} Kd3 {[%emt 0:00:00]} 59. Kf1 {[%emt 0:00:01]} Kd2 {[%emt 0:00:02]} 60. Kg2 {[%emt 0:00:02]} e2 {[%emt 0:00:01]} 61. Kh3 {[%emt 0:00:01]} e1=Q {[%emt 0:00:01]} 62. h6 {[%emt 0:00:02]} Bh4 {[%emt 0:00:24]} 63. Kg2 {[%emt 0:00:03]} Qf2+ {[%emt 0:00:03]} 64. Kh1 {[%emt 0:00:02]} Bg3 {[%emt 0:00:04]} 65. g5 {[%emt 0:00:02]} Qh2# {[%emt 0:00:01]} 0-1

[Event "2nd FIDE WCC Rapid G10"]
[Site "Minsk"]
[Date "2018.06.23"]
[Round "8"]
[White "Borovikova, Marija"]
[Black "Kleymenova, Valeria"]
[Result "0-1"]
[ECO "C01"]
[WhiteElo "1172"]
[BlackElo "1669"]
[Annotator "NA RC"]
[PlyCount "40"]
[EventDate "2018.06.22"]
[EventType "rapid"]
[EventCountry "BLR"]
[SourceTitle "playchess.com"]
[Source "ChessBase"]
[SourceQuality "1"]
[TimeControl "600+5"]

1. e4 {[%emt 0:00:00]} e6 {[%emt 0:00:01]} 2. d4 {[%emt 0:00:00]} d5 {[%emt 0:00:02]} 3. exd5 {[%emt 0:00:00]} exd5 {[%emt 0:00:03]} 4. Nf3 {[%emt 0:00:00]} Nf6 {[%emt 0:00:04]} 5. Bg5 {[%emt 0:00:02]} Bd6 {[%emt 0:00:03]} 6. Bd3 {[%emt 0:00:03]} O-O {[%emt 0:00:04]} 7. O-O {[%emt 0:00:02]} Bg4 {[%emt 0:00:03]} 8. Nc3 {[%emt 0:00:04]} c6 {[%emt 0:00:05]} 9. h3 {[%emt 0:00:03]} Bh5 {[%emt 0:00:03]} 10. Re1 {[%emt 0:00:11]} Nbd7 {[%emt 0:00:07]} 11. a3 Qc7 {[%emt 0:00:13]} 12. b4 {[%emt 0:01:10]} a6 {[%emt 0:00:04]} 13. Rb1 {[%emt 0:00:15]} Rfe8 {[%emt 0:00:15]} 14. Rxe8+ {[%emt 0:00:22]} Rxe8 {[%emt 0:00:02]} 15. a4 {[%emt 0:00:02]} Ne4 {[%emt 0:00:50]} 16. Bd2 {[%emt 0:00:17]} Bxf3 {[%emt 0:01:13]} 17. gxf3 {[%emt 0:00:05]} Bh2+ {[%emt 0:00:36]} 18. Kg2 {[%emt 0:00:20]} Nxf2 {[%emt 0:00:45]} 19. b5 {[%emt 0:01:26]} Qg3+ {[%emt 0:00:07]} 20. Kf1 {[%emt 0:00:00]} Qg1# 0-1

[Event "2nd FIDE WCC Rapid G10"]
[Site "Minsk"]
[Date "2018.06.23"]
[Round "8"]
[White "Nguyen, Thu An"]
[Black "Szczotka, Klara"]
[Result "0-1"]
[ECO "B23"]
[WhiteElo "1045"]
[BlackElo "1465"]
[Annotator "NA RC"]
[PlyCount "124"]
[EventDate "2018.06.22"]
[EventType "rapid"]
[EventCountry "BLR"]
[SourceTitle "playchess.com"]
[Source "ChessBase"]
[SourceQuality "1"]
[TimeControl "600+5"]

1. e4 {[%emt 0:00:00]} c5 {[%emt 0:00:00]} 2. Nc3 {[%emt 0:00:00]} e6 {[%emt 0:00:00]} 3. g3 {[%emt 0:00:00]} a6 {[%emt 0:00:11]} 4. Bg2 {[%emt 0:00:07]} Qc7 {[%emt 0:00:02]} 5. d3 {[%emt 0:00:07]} Nf6 {[%emt 0:00:13]} 6. Be3 {[%emt 0:00:06]} d6 {[%emt 0:00:09]} 7. h3 {[%emt 0:00:06]} Be7 {[%emt 0:00:08]} 8. Nge2 {[%emt 0:00:05]} Nc6 {[%emt 0:00:08]} 9. O-O {[%emt 0:00:05]} Rb8 {[%emt 0:00:24]} 10. d4 {[%emt 0:00:13]} cxd4 {[%emt 0:00:12]} 11. Nxd4 {[%emt 0:00:03]} Ne5 {[%emt 0:00:14]} 12. f4 {[%emt 0:00:25]} Nc4 {[%emt 0:00:03]} 13. Bc1 {[%emt 0:00:38]} b5 {[%emt 0:00:28]} 14. b3 {[%emt 0:00:26]} Nb6 {[%emt 0:00:28]} 15. Bb2 {[%emt 0:00:03]} Bb7 {[%emt 0:00:06]} 16. Qd3 {[%emt 0:00:57]} Nbd7 {[%emt 0:00:16]} 17. Rae1 {[%emt 0:00:43]} Nc5 {[%emt 0:00:19]} 18. Qe2 {[%emt 0:00:15]} b4 {[%emt 0:00:28]} 19. Nb1 {[%emt 0:00:27]} Ncxe4 {[%emt 0:00:34]} 20. Qe3 {[%emt 0:00:44]} Nc5 {[%emt 0:00:59]} 21. Bxb7 {[%emt 0:00:25]} Qxb7 {[%emt 0:00:09]} 22. Nd2 {[%emt 0:00:05]} Nd5 {[%emt 0:00:20]} 23. Qf2 {[%emt 0:00:33]} a5 {[%emt 0:01:13]} 24. Nc4 {[%emt 0:00:55]} a4 {[%emt 0:00:31]} 25. Qf3 {[%emt 0:00:47]} a3 {[%emt 0:00:39]} 26. Ba1 {[%emt 0:00:07]} Nb6 {[%emt 0:00:28]} 27. Qg4 {[%emt 0:00:07]} Rg8 {[%emt 0:00:22]} 28. Nxb6 {[%emt 0:00:29]} Qxb6 {[%emt 0:00:01]} 29. Kh2 {[%emt 0:00:18]} Qc7 {[%emt 0:00:32]} 30. Qe2 {[%emt 0:00:03]} Kd7 {[%emt 0:00:51]} 31. Rd1 {[%emt 0:00:01]} Kc8 {[%emt 0:00:18]} 32. Nb5 {[%emt 0:00:02]} Qb6 {[%emt 0:00:10]} 33. Nd4 {[%emt 0:00:15]} Rb7 {[%emt 0:00:15]} 34. Qc4 {[%emt 0:00:12]} Kb8 {[%emt 0:00:10]} 35. Rfe1 {[%emt 0:00:02]} Rc8 {[%emt 0:00:14]} 36. Qe2 {[%emt 0:00:02]} Qa6 {[%emt 0:00:13]} 37. Qg4 {[%emt 0:00:17]} Bf8 {[%emt 0:00:15]} 38. Nf3 {[%emt 0:00:10]} g6 {[%emt 0:00:09]} 39. Ng5 {[%emt 0:00:04]} h6 {[%emt 0:00:12]} 40. Nh7 {[%emt 0:00:17]} Be7 {[%emt 0:00:09]} 41. Nf6 {[%emt 0:00:04]} Nd7 {[%emt 0:00:12]} 42. Nxd7+ {[%emt 0:00:08]} Rxd7 {[%emt 0:00:02]} 43. Rd2 {[%emt 0:00:05]} h5 {[%emt 0:00:04]} 44. Qf3 {[%emt 0:00:02]} Qb7 {[%emt 0:00:04]} 45. Qe3 {[%emt 0:00:07]} Rdc7 {[%emt 0:00:05]} 46. Ree2 {[%emt 0:00:01]} Qa7 {[%emt 0:00:09]} 47. Bd4 {[%emt 0:00:01]} Qb7 {[%emt 0:00:04]} 48. Bb6 {[%emt 0:00:02]} Rc6 {[%emt 0:00:03]} 49. Bd4 {[%emt 0:00:09]} Qc7 {[%emt 0:00:08]} 50. Qd3 {[%emt 0:00:03]} Qb7 {[%emt 0:00:09]} 51. Re4 {[%emt 0:00:33]} Bd8 {[%emt 0:00:08]} 52. Bf2 {[%emt 0:00:18]} Be7 {[%emt 0:00:22]} 53. Be1 {[%emt 0:00:08]} d5 {[%emt 0:00:05]} 54. Ree2 {[%emt 0:00:04]} Bf6 {[%emt 0:00:09]} 55. Bf2 {[%emt 0:00:01]} Rc3 {[%emt 0:00:05]} 56. Qxc3 {[%emt 0:00:16]} Bxc3 57. Rd1 {[%emt 0:00:04]} Qc6 {[%emt 0:00:12]} 58. Be3 {[%emt 0:00:03]} Rd8 {[%emt 0:00:03]} 59. Bf2 {[%emt 0:00:04]} d4 {[%emt 0:00:04]} 60. Be3 {[%emt 0:00:10]} Qf3 {[%emt 0:00:08]} 61. Ree1 {[%emt 0:00:07]} Bxe1 {[%emt 0:00:02]} 62. Rxe1 {[%emt 0:00:08]} dxe3 {[%emt 0:00:01]} 0-1